Cogmind - Beta 13 @@@ ROGUE MODE // 2024.04.02 @ 04:56:12 Player: Namu Result: Destroyed by G-34 Mercenary with Small Laser Performance ------------- Evolutions (0) 0 Regions Visited (1) 200 Robots Destroyed (47) 235 Value Destroyed (557) 557 Prototype IDs (0) 0 Alien Tech Used (0) 0 Bonus (0) 0 TOTAL SCORE: 992 Bonus ------- None Cogmind --------- Core Integrity 0/250 Matter 294/300 Energy 125/125 System Corruption 9% Temperature Cool (6) Movement Treading (160) Location -10/Materials Parts ------- > --- POWER (1) -------- Light Ion Engine > --- PROPULSION (2) --- Light Treads Light Treads > --- UTILITY (2) ------ Heat Sink Medium Storage Unit > --- WEAPON (2) ------- Small Laser Small Laser > --- INVENTORY (10) --- Light Ion Engine Wheel Wheel Small Storage Unit Small Laser Peak State ------------ > --- POWER ------------ Light Ion Engine > --- PROPULSION ------- Light Treads Light Treads > --- UTILITY ---------- Medium Storage Unit Hacking Suite > --- WEAPON ----------- Small Laser Small Laser > --- INVENTORY -------- Light Ion Engine Wheel Wheel Small Storage Unit Small Laser [Rating: 9] Favorites ----------- Power Light Ion Engine Engine Light Ion Engine Propulsion Light Treads Treads Light Treads Wheel Wheel Utility Medium Storage Unit Device Heat Sink Storage Medium Storage Unit Processor Signal Interpreter Hackware Hacking Suite Weapon Small Laser Energy Gun Small Laser Ballistic Gun Assault Rifle Launcher Grenade Launcher Special Weapon Mining Laser Build | -11 -10 ------- Run | Yrd Mat Slots Evolved . | . . Power . | . . Propulsion . | . . Utility . | . . Weapon . | . . Parts Attached 26 | 8 18 Power 6 | 4 2 Engine 6 | 4 2 Core . | . . Reactor . | . . Propulsion 5 | 2 3 Treads 2 | . 2 Leg . | . . Wheel 3 | 2 1 Hover . | . . Flight . | . . Utility 6 | 1 5 Device 1 | . 1 Storage 3 | 1 2 Processor 1 | . 1 Hackware 1 | . 1 Protection . | . . Artifact . | . . Weapon 9 | 1 8 Energy Gun 5 | 1 4 Energy Cannon . | . . Ballistic Gun 1 | . 1 Ballistic Cannon . | . . Launcher 1 | . 1 Special Weapon 2 | . 2 Impact Weapon . | . . Slashing Weapon . | . . Piercing Weapon . | . . Special Melee Weapon . | . . Unidentified Prototypes . | . . Parts Lost 8 | . 8 Power 2 | . 2 Propulsion 1 | . 1 Utility 1 | . 1 Weapon 4 | . 4 Highest Loss Streak 8 | . 8 To Critical Strikes . | . . Average Slot Usage (%) 90 | . 90 Engine 6 | . 6 Treads 19 | . 19 Wheel 8 | . 8 Device 2 | . 2 Storage 15 | . 15 Processor 3 | . 3 Hackware 6 | . 6 Energy Gun 20 | . 20 Ballistic Gun 3 | . 3 Launcher 3 | . 3 Naked Turns . | . . Heaviest Build 18 | 10 18 Greatest Support 40 | 20 40 Greatest Overweight (x) 3 | 3 . Average Overweight (x) . | . . Largest Inventory Capacity 10 | 8 10 Average Capacity 9 | 6 9 Most Carried 8 | 8 8 Average Carried 4 | 5 4 Final Capacity 10 | 8 10 Final Carried 7 | 7 5 Class Distribution -------------------- 83% | Mutant 16% | Scavenger-Mutant Dominant Class ---------------- Mutant | -10/Materials Resources | -11 -10 ----------- Run | Yrd Mat Matter Collected 729 | 213 516 Remotely . | . . Salvage Created 1571 | . 1571 Parts 94 | . 94 Haulers Intercepted 1 | . 1 Recyclers Shooed 9 | . 9 Parts Field Recycled . | . . Retrieved Matter . | . . Parts Self-Destructed . | . . Prevented . | . . Kills | -11 -10 ------- Run | Yrd Mat Combat Hostiles Destroyed 9 | . 9 Guns 5 | . 5 AOE 4 | . 4 Classes Destroyed 8 | . 8 Worker 10 | . 10 Builder 11 | . 11 Tunneler 2 | . 2 Hauler 1 | . 1 Recycler 11 | . 11 Operator 1 | . 1 Watcher 2 | . 2 Grunt 9 | . 9 Best Kill Streak 7 | . 7 Combat Bots Only 3 | . 3 Max Kills in Single Turn 2 | . 2 Gunslinging . | . . Exploded 1 | . 1 Melee . | . . Uniques/NPCs Destroyed . | . . Combat | -11 -10 -------- Run | Yrd Mat Hostile Shots Fired 96 | . 96 Missed 22 | . 22 Damage Taken 1062 | . 1062 Core 261 | . 261 Absorbed by Shields . | . . Core Remaining (%) 100 | 100 . Volleys Fired 159 | . 159 Largest 2 | . 2 Hottest 80 | . 80 Shots Fired 283 | . 283 Gun 260 | . 260 Cannon . | . . Launcher 23 | . 23 Special . | . . Kinetic 15 | . 15 Thermal 245 | . 245 Explosive 23 | . 23 Electromagnetic . | . . Robot Hit Streak 13 | . 13 Robot Miss Streak 4 | . 4 Penetration Max . | . . Secondary Targets 1 | . 1 Max Gunslinging Chain 1 | . 1 Shots Hit Robots 148 | . 148 Core Hits 75 | . 75 Critical Kills . | . . Critical Parts Destroyed . | . . Critical Strikes . | . . Melee Attacks . | . . Impact . | . . Slashing . | . . Piercing . | . . Sneak Attacks . | . . Combat Hostiles . | . . Follow-up Attacks . | . . Damage Inflicted 2411 | . 2411 Guns 1516 | . 1516 Cannons . | . . Explosions 895 | . 895 Melee . | . . Ramming . | . . Kinetic 106 | . 106 Thermal 1410 | . 1410 Explosive 895 | . 895 Electromagnetic . | . . Impact . | . . Slashing . | . . Piercing . | . . Highest Corruption 9 | . 9 Average Corruption 6 | . 6 Corruption Purged . | . . Corruption Blocked . | . . Effects 44 | . 44 Message Errors 8 | . 8 Matter Fused 6 | . 6 Heat Flow Errors 7 | . 7 Energy Discharges 6 | . 6 Data Loss (minor) 4 | . 4 Data Loss (major) 4 | . 4 Misfires 5 | . 5 Weapon Failures 4 | . 4 Overload Shots . | . . Overflow Damage 12 | . 12 Projectiles . | . . Explosions 12 | . 12 Melee . | . . Knockbacks . | . . Impact . | . . Kinetic . | . . Secondary . | . . Self-Inflicted Damage 45 | . 45 Shots 3 | . 3 Rammed . | . . Targets Rammed . | . . Kicked . | . . Crushed . | . . Highest Temperature 307 | . 307 Average Temperature 38 | . 38 Received Heat Transfer 468 | . 468 Effects 2 | . 2 Interference 2 | . 2 Siege Activations . | . . Robots Corrupted . | . . Combat Hostiles . | . . Parts Fried . | . . Impact Corruptions . | . . Robots Melted . | . . Combat Hostiles . | . . Parts Melted 2 | . 2 Heat Transferred 3225 | . 3225 Parts Sabotaged . | . . Parts Stolen . | . . Parts Stripped . | . . Power Chain Reactions . | . . Alert | -11 -10 ------- Run | Yrd Mat Peak Influence 339 | . 339 Initial . | . . Average 116 | . 124 Maximum Alert Level 1 | . 1 Low Security (%) 86 | 100 85 Level 1 13 | . 14 Level 2 . | . . Level 3 . | . . Level 4 . | . . Level 5 . | . . High Security . | . . Max Security . | . . Squads Dispatched 3 | . 3 Investigation 2 | . 2 Extermination . | . . Reinforcement 1 | . 1 Assault . | . . Garrison . | . . Intercept . | . . Searches Triggered . | . . Construction Impeded . | . . Haulers Reinforced . | . . Active Scanning Responses . | . . Cargo Convoy Interrupts . | . . Stealth | -11 -10 --------- Run | Yrd Mat Distress Signals 2 | . 2 Communications Jammed . | . . Distress Signals . | . . Times Spotted 22 | . 22 Peak Tracking Total 4 | . 4 Tactical Retreats 2 | . 2 Traps | -11 -10 ------- Run | Yrd Mat Traps Triggered 5 | . 5 Indirectly . | . . Trap Hack Attempts . | . . Triggered . | . . Disarmed . | . . Reprogrammed . | . . Reused . | . . Traps Extracted . | . . Installed . | . . Triggered . | . . Machines | -11 -10 ---------- Run | Yrd Mat Machines Disabled 3 | . 3 Max in Single Turn 1 | . 1 Machines Repaired . | . . Machines Dismantled . | . . Machines Sabotaged . | . . Overloaded Fab Kills . | . . Hacking | -11 -10 --------- Run | Yrd Mat Machines Accessed 1 | . 1 Terminals . | . . Fabricators . | . . Repair Stations . | . . Recycling Units 1 | . 1 Scanalyzers . | . . Garrison Access . | . . Total Hacks 3 | . 3 Successful 1 | . 1 Failed 2 | . 2 Catastrophic . | . . Database Lockouts . | . . Manual . | . . Terminals . | . . Fabricators . | . . Repair Stations . | . . Recycling Units 3 | . 3 Scanalyzers . | . . Garrison Access . | . . Terminal Hacks . | . . Fabricator Hacks . | . . Repair Station Hacks . | . . Recycling Unit Hacks 1 | . 1 Report Inventory 1 | . 1 Scanalyzer . | . . Garrison Access Hacks . | . . Unauthorized Hacks . | . . Terminals . | . . Fabricators . | . . Repair Stations . | . . Recycling Units . | . . Scanalyzers . | . . Garrison Access . | . . Data Cores Recovered . | . . Used . | . . Hacking Detections 1 | . 1 Full Trace Events 1 | . 1 Feedback Events . | . . Feedback Blocked . | . . Robot Schematics Acquired . | . . Robots Built . | . . Authchips . | . . Time . | . . Total Robot Build Rating . | . . Part Schematics Acquired . | . . Parts Built . | . . Authchips . | . . Time . | . . Total Part Build Rating . | . . Parts Repaired . | . . Time . | . . Parts Recycled . | . . Recycled Matter . | . . Retrieved Matter . | . . Retrieved Components . | . . Parts Scanalyzed . | . . Part Schematics Acquired . | . . Parts Damaged . | . . Bothacking | -11 -10 ------------ Run | Yrd Mat Used RIF Installer . | . . Robots Hacked . | . . Non-combat . | . . Combat . | . . Robot Hacks Applied . | . . Relay Couplers Released . | . . Fabnet Peak Effective % . | . . Robots Rewired . | . . Allies Hacked . | . . Hacks Repelled . | . . Allies | -11 -10 -------- Run | Yrd Mat Total Allies . | . . Largest Group . | . . Highest-Rated Group . | . . Highest-Rated Ally . | . . Total Orders . | . . Ally Attacks . | . . Total Damage . | . . Kills . | . . Allies Corrupted . | . . Allies Melted . | . . Intel | -11 -10 ------- Run | Yrd Mat Robot Analysis Total . | . . Derelict Logs Recovered . | . . Drone Launches . | . . Drone Recoveries . | . . Exploration | -11 -10 ------------- Run | Yrd Mat Turns Passed 1639 | 114 1525 Spaces Moved 814 | 72 742 Core 47 | 47 . Treads 352 | . 352 Legs . | . . Wheels 415 | 25 390 Hover . | . . Flight . | . . Fastest Speed 50 | 50 80 Average Speed 120 | 106 121 Slowest Speed 200 | 200 160 Overloaded Moves . | . . Propulsion Burnouts . | . . Robots Hopped . | . . Cave-ins Triggered 1 | . 1 Exploration Rate (%) 30 | 5 55 Regions Visited 1 Branch Regions . Pre-discovered Areas . | . . Known Exits Taken . | . . Unknown Exits Taken 1 | 1 . Scrap Searched . | . . Spaces Dug . | . . Terrain Destroyed 74 | . 74 Melee . | . . Projectile . | . . AOE 74 | . 74 Terrain Rammed . | . . Walls Destroyed . | . . Machines Disabled . | . . Actions | -11 -10 --------- Run | Yrd Mat Total 1191 | 108 1083 Wait 158 | 16 142 Move 813 | 71 742 Hop . | . . Pick Up 27 | 12 15 Fast Attach . | . . Attach 20 | 6 14 Detach 2 | 1 1 Swap 6 | 2 4 Drop 6 | . 6 Fire 159 | . 159 Melee . | . . Ram . | . . Kick . | . . Crush . | . . Escape Stasis . | . . Rewire . | . . Trap . | . . Miscellaneous . | . . Route ------- -11/Scrapyard -10/Materials (discovered 3 exits: [*Mat x3]) History --------- Turn | Location | Event 3 | -11/Scrapyard | Discovered new exit (range 15) 115 | -11/Scrapyard | Entered Materials 193 | -10/Materials | Discovered new exit (range 13) 309 | -10/Materials | Build established: Mutant 532 | -10/Materials | Core integrity fell below 50% 593 | -10/Materials | Crushed by falling debris 624 | -10/Materials | Lost 8 parts (2p1n1u4w) 626 | -10/Materials | Discovered new exit (range 10) 1556 | -10/Materials | Core integrity fell below 20% 1612 | -10/Materials | Discovered new exit (range 13) 1640 | -10/Materials | Destroyed by G-34 Mercenary with Small Laser Last Messages --------------- 01537_ Recycling Unit unresponsive. 01552_ K-01 Serf collects debris. 01559_ G-34 Mercenary destroyed. 01568_ System corrupted: Heat flow error (+165). 01571_ Destroyed Welding Torch. 01583_ Y6FB0WDZIPH1X|UA#:HV=Z7G6 01598_ System corrupted: Energy discharge (-36). 01604_ Triggered Shock Trap. 01604_ The floor emits a surge of raw power. 01604_ System corrupted (+2). 01612_ EXIT=FOUND 01614_ System corrupted: FCS attempts to trigger Sml. Laser. 01614_ System corrupted: Sml. Laser misfires. 01619_ U-05 Engineer sends out distress signal. 01631_ G-47 Trooper destroyed. 01631_ Switching to secondary target: G-34 Mercenary. 01634_ K-01 Serf collects debris. 01637_ System corrupted: Matter fused (-6). Map ----- +----------------------------------------------------+ | ??????????????????????????????????????# | | ??????????????????????????????????????# ! | | ??????????????????????????????????#???# ! | | ??????????????????????????????????# ??# | | | ??????????????????????????????????#